bitfinex-derivatives/quotes_BTCF0:USTF0_20250213
["timestamp","ask_amount","ask_price","bid_price","bid_amount"]
[1739453683517,0.3608,96183.0,96178.0,0.00015592]
[1739453683704,0.2079154,96179.0,96178.0,0.00015592]
[1739453683909,0.3608,96183.0,96178.0,0.00015592]
[1739453684109,0.76872,96193.0,96178.0,0.00015592]
[1739453684315,0.28834662,96190.0,96178.0,0.00015592]
[1739453684513,0.2079154,96179.0,96178.0,0.00015592]
[1739453685714,0.7216,96186.0,96178.0,0.00015592]
[1739453685916,0.007,96179.0,96178.0,0.00115592]
[1739453686718,0.007,96179.0,96178.0,0.36195592]
[1739453686919,0.76872,96193.0,96183.0,0.2079053]
[1739453687216,0.76872,96193.0,96187.0,0.3608]
[1739453687520,0.13432,96197.0,96196.0,0.2078774]
[1739453687720,0.00015592,96206.0,96191.0,0.3608]
[1739453687919,0.00015592,96206.0,96204.0,0.3608]
[1739453689220,0.00715592,96206.0,96204.0,0.3618]
[1739453689424,0.00715592,96206.0,96204.0,0.35346754]
[1739453689928,0.00155973,96220.0,96204.0,0.35346754]
[1739453690114,0.00155973,96220.0,96219.0,0.3608]
[1739453690424,0.13467973,96220.0,96219.0,0.3608]
[1739453691531,0.13423973,96220.0,96219.0,0.3608]
[1739453691718,0.13423973,96220.0,96219.0,0.3618]
[1739453693015,0.00155973,96220.0,96219.0,0.3618]
[1739453693219,0.00015592,96229.0,96228.0,0.2078096]
[1739453693422,0.00015592,96229.0,96228.0,0.3608]
[1739453694416,0.00015592,96229.0,96228.0,0.3618]
[1739453697327,0.3608,96253.0,96228.0,0.3618]
[1739453697328,0.28834662,96250.0,96228.0,0.3618]
[1739453697530,0.28834662,96250.0,96239.0,0.3608]
[1739453697931,0.2077836,96240.0,96239.0,0.3608]
[1739453698429,0.00015592,96249.0,96230.0,0.00015592]
[1739453698621,0.3608,96245.0,96237.0,0.3608]
[1739453698822,0.1304,96244.0,96237.0,0.3608]
[1739453699020,0.00015592,96249.0,96237.0,0.3608]
[1739453699224,0.00015592,96249.0,96245.0,0.3608]
[1739453700321,0.00155916,96260.0,96245.0,0.3608]
[1739453700525,0.00155916,96260.0,96259.0,0.3608]
[1739453702126,0.36235916,96260.0,96250.0,0.00015583]
[1739453702324,0.65070578,96260.0,96250.0,0.00015583]
[1739453703522,0.2077599,96251.0,96250.0,0.00015583]
[1739453703724,0.18882018,96260.0,96250.0,0.00015583]
[1739453703924,0.54910017,96260.0,96250.0,0.00015583]
[1739453704124,0.2077495,96256.0,96250.0,0.00015583]
[1739453704330,0.3608,96251.0,96250.0,0.00015583]
[1739453704531,0.2077592,96252.0,96250.0,0.00015583]
[1739453704744,0.2077836,96240.0,96239.0,0.00155877]
[1739453704916,0.3608,96240.0,96213.0,0.3608]
[1739453705116,0.18674101,96223.0,96213.0,0.3608]
[1739453705321,0.3608,96222.0,96213.0,0.3608]
[1739453705623,0.3608,96214.0,96196.0,0.30743726]
[1739453705821,0.3608,96222.0,96196.0,0.30743726]
[1739453705822,0.3608,96222.0,96208.0,0.00015583]
[1739453706127,0.54754101,96223.0,96208.0,0.00015583]
[1739453706318,0.00015583,96227.0,96213.0,0.3608]
[1739453706930,0.18674101,96223.0,96213.0,0.3608]
[1739453707315,0.2078287,96220.0,96208.0,0.00015583]
[1739453707534,0.3608,96222.0,96208.0,0.00015583]
[1739453707726,0.207831,96219.0,96208.0,0.00015583]
[1739453708030,0.3608,96222.0,96208.0,0.00015583]
[1739453708228,0.18674101,96223.0,96208.0,0.00015583]
[1739453709127,0.18674101,96223.0,96211.0,0.3608]
[1739453709523,0.00015583,96227.0,96220.0,0.3608]
[1739453709830,0.00155965,96243.0,96225.0,0.3608]
[1739453710128,0.18674101,96280.0,96249.0,0.207763]
[1739453710318,0.2077059,96277.0,96260.0,0.3608]
[1739453710725,0.18674101,96280.0,96260.0,0.3608]
[1739453710924,0.2077078,96276.0,96260.0,0.3608]
[1739453711131,0.18689584,96280.0,96260.0,0.36095583]
[1739453711327,0.18689584,96280.0,96272.0,0.3608]
[1739453711528,0.00015483,96280.0,96272.0,0.3608]
[1739453711736,0.00015483,96280.0,96260.0,0.36095583]
[1739453712035,0.28785146,96280.0,96260.0,0.36095583]
[1739453714028,0.00015483,96280.0,96269.0,0.3608]
[1739453714233,0.00015483,96280.0,96277.0,0.3608]
[1739453715229,0.00155877,96300.0,96299.0,0.2076563]
[1739453715431,0.00155877,96300.0,96299.0,0.3608]
[1739453715829,0.2076597,96298.0,96280.0,0.3608]
[1739453716033,0.00155877,96300.0,96288.0,0.3608]
[1739453716240,0.00155877,96300.0,96299.0,0.3608]
[1739453717640,0.00155877,96300.0,96288.0,0.3608]
[1739453717938,0.00155877,96300.0,96296.0,0.3608]
[1739453718139,0.00155877,96300.0,96299.0,0.001]
[1739453718528,0.00155877,96300.0,96299.0,0.2086564]
[1739453718734,0.21582672,96323.0,96303.0,0.2076457]
[1739453719032,0.21582672,96323.0,96321.0,0.3608]
[1739453719237,0.42343292,96323.0,96321.0,0.3608]
[1739453719633,0.21582672,96323.0,96309.0,0.3608]
[1739453720034,0.21582672,96323.0,96322.0,0.3608]
[1739453720035,0.21546518,96323.0,96322.0,0.3608]
[1739453720439,0.28769663,96350.0,96322.0,0.3608]
[1739453720638,0.2075793,96335.0,96322.0,0.3608]
[1739453720843,0.28769663,96340.0,96322.0,0.3608]
[1739453721147,0.28769663,96350.0,96322.0,0.3608]
[1739453721543,0.2075519,96348.0,96322.0,0.3618]
[1739453721740,0.21546518,96354.0,96322.0,0.3618]
[1739453721741,0.21546518,96354.0,96330.0,0.3608]
[1739453721945,0.21546518,96354.0,96339.0,0.3608]
[1739453722131,0.0215767,96353.0,96339.0,0.3608]
[1739453722332,0.3608,96351.0,96330.0,0.3608]
[1739453722537,0.28769663,96350.0,96330.0,0.3608]
[1739453722744,0.28769663,96340.0,96322.0,0.001]
[1739453723630,0.3608,96331.0,96322.0,0.001]
[1739453723940,0.1236,96330.0,96322.0,0.001]
[1739453724442,0.1236,96330.0,96325.0,0.3608]
[1739453724834,0.1236,96330.0,96328.0,0.2075923]
[1739453725040,0.3608,96354.0,96329.0,0.3608]
[1739453725241,0.2075431,96352.0,96329.0,0.3608]
[1739453725436,0.2075463,96351.0,96329.0,0.3608]
[1739453725635,0.28769663,96350.0,96329.0,0.3608]
[1739453725847,0.2075768,96336.0,96329.0,0.3608]
[1739453726038,0.3608,96333.0,96322.0,0.001]
[1739453726239,0.2076041,96324.0,96322.0,0.001]
[1739453726837,0.2075724,96338.0,96322.0,0.001]
[1739453727143,0.2075773,96336.0,96324.0,0.3608]
[1739453727444,0.20912081,96343.0,96329.0,0.001]
[1739453727637,0.3608,96339.0,96329.0,0.001]
[1739453727836,0.12264,96338.0,96329.0,0.001]
[1739453728146,0.12264,96338.0,96324.0,0.3608]
[1739453728340,0.3608,96331.0,96322.0,0.001]
[1739453728543,0.2076038,96324.0,96322.0,0.001]
[1739453728941,0.3608,96339.0,96322.0,0.001]
[1739453729143,0.2075821,96334.0,96322.0,0.3618]
[1739453729347,0.3608,96333.0,96322.0,0.3608]
[1739453729544,0.3608,96333.0,96329.0,0.001]
[1739453729845,0.00155801,96343.0,96329.0,0.001]
[1739453730046,0.00155801,96343.0,96332.0,0.3608]
[1739453730436,0.00155801,96343.0,96340.0,0.3608]
[1739453731047,0.00155801,96343.0,96332.0,0.3608]
[1739453731746,0.00155801,96343.0,96322.0,0.001]
[1739453732052,0.2076093,96321.0,96319.0,0.00015575]
[1739453732239,0.3608,96322.0,96319.0,0.00015575]
[1739453733345,0.28769663,96332.0,96319.0,0.00015575]
[1739453733550,0.2075766,96336.0,96319.0,0.00015575]
[1739453734250,0.1864141,96330.0,96319.0,0.00115575]
[1739453734650,0.3608,96332.0,96319.0,0.00115575]
[1739453735050,0.1864141,96330.0,96329.0,0.3608]
[1739453735241,0.3608,96337.0,96319.0,0.00115575]
[1739453735550,0.3608,96328.0,96319.0,0.00115575]
[1739453735753,0.1864141,96340.0,96325.0,0.3608]
[1739453736440,0.00155801,96343.0,96335.0,0.3608]
[1739453737949,0.2075794,96335.0,96325.0,0.3608]
[1739453738150,0.3939935,96335.0,96325.0,0.3608]
[1739453738748,0.1864141,96335.0,96325.0,0.3608]
[1739453739051,0.00155801,96343.0,96334.0,0.3608]
[1739453740852,0.00155801,96343.0,96334.0,0.3618]
[1739453743348,0.00155801,96343.0,96342.0,0.3608]
[1739453744048,0.00155801,96343.0,96334.0,0.3618]
[1739453744251,0.00155801,96343.0,96334.0,0.56838]
[1739453744545,0.00155801,96343.0,96334.0,0.56938]
[1739453745247,0.00155801,96343.0,96336.0,0.2075753]
[1739453745444,0.00155801,96343.0,96342.0,0.3608]
[1739453746240,0.76808,96354.0,96342.0,0.3608]
[1739453746547,0.76808,96354.0,96353.0,0.3608]
[1739453746752,0.88524,96354.0,96353.0,0.3608]
[1739453746947,0.88516,96354.0,96353.0,0.56834]
[1739453747147,0.01913291,96366.0,96353.0,0.3608]
[1739453747356,0.00155801,96376.0,96353.0,0.3608]
[1739453747357,0.00155801,96376.0,96366.0,0.207511]
[1739453747544,0.00155801,96376.0,96367.0,0.2075094]
[1739453747853,0.00155801,96376.0,96365.0,0.3608]
[1739453748039,0.00155801,96376.0,96366.0,0.2075117]
[1739453748246,0.00155801,96376.0,96365.0,0.3608]
[1739453748560,0.00155801,96376.0,96367.0,0.2075094]
[1739453748848,0.00155801,96376.0,96373.0,0.3608]
[1739453749351,0.36235801,96376.0,96366.0,0.001]
[1739453749552,0.56984871,96376.0,96366.0,0.001]
[1739453749750,0.36235801,96376.0,96366.0,0.001]
[1739453749957,0.2074996,96372.0,96366.0,0.001]
[1739453750253,0.36235801,96376.0,96366.0,0.001]
[1739453750450,0.36235801,96376.0,96366.0,0.00093952]
[1739453750751,0.36235801,96376.0,96365.0,0.001]
[1739453751753,0.2075017,96371.0,96366.0,0.001]
[1739453752053,0.36235801,96376.0,96366.0,0.001]
[1739453752259,0.56984941,96376.0,96366.0,0.001]
[1739453752557,0.36235801,96376.0,96366.0,0.001]
[1739453752758,0.207504,96370.0,96366.0,0.001]
[1739453753663,0.207504,96370.0,96364.0,0.3608]
[1739453753664,0.207504,96370.0,96365.0,0.001]
[1739453753847,0.36235801,96376.0,96365.0,0.001]
[1739453754560,0.36235801,96376.0,96366.0,0.001]
[1739453754751,0.00155801,96376.0,96366.0,0.001]
[1739453754948,0.00155801,96376.0,96374.0,0.3608]
[1739453756257,0.00155801,96376.0,96374.0,0.5682933]
[1739453756557,0.76792,96396.0,96374.0,0.3608]
[1739453756755,0.1146,96395.0,96387.0,0.3608]
[1739453757259,0.3608,96392.0,96381.0,0.00015566]
[1739453757455,0.3608,96392.0,96374.0,0.001]
[1739453757456,0.1864141,96391.0,96374.0,0.001]
[1739453757656,0.2074916,96376.0,96374.0,0.001]
[1739453757862,0.3608,96383.0,96374.0,0.001]
[1739453757863,0.2074787,96382.0,96374.0,0.001]
[1739453758052,0.3608,96375.0,96374.0,0.001]
[1739453758362,0.5682926,96375.0,96374.0,0.001]
[1739453759355,0.2074926,96375.0,96374.0,0.001]
[1739453759551,0.2075384,96354.0,96338.0,0.3608]
[1739453759758,0.1864141,96353.0,96338.0,0.3608]
[1739453760460,0.5472141,96360.0,96342.0,0.3608]
[1739453760661,0.3608,96360.0,96350.0,0.3608]
[1739453760860,0.11388,96359.0,96350.0,0.3608]
[1739453761656,0.2075308,96358.0,96350.0,0.3608]
[1739453761857,0.54773411,96360.0,96350.0,0.3608]
[1739453762054,0.5472141,96360.0,96350.0,0.3608]
[1739453762364,0.00015566,96361.0,96350.0,0.5683458]
[1739453762670,0.1864141,96360.0,96350.0,0.3608]
[1739453763862,0.3608,96358.0,96343.0,0.001]
[1739453764164,0.1864141,96353.0,96343.0,0.001]
[1739453764365,0.1864141,96353.0,96342.0,0.00015566]
[1739453764366,0.2075575,96345.0,96342.0,0.00015566]
[1739453764551,0.2075874,96331.0,96308.0,0.3608]
[1739453764756,0.3608,96317.0,96296.0,0.53908]
[1739453764960,0.1864141,96310.0,96296.0,0.538]
[1739453765163,0.3608,96317.0,96296.0,0.55713367]
[1739453765670,0.3608,96317.0,96304.0,0.3608]
[1739453765863,0.11595575,96316.0,96304.0,0.3608]
[1739453766059,0.00015575,96316.0,96304.0,0.3608]
[1739453766660,0.00015575,96316.0,96313.0,0.3608]
[1739453767067,0.00015575,96316.0,96304.0,0.3608]
[1739453767364,0.1864141,96314.0,96304.0,0.3608]
[1739453767567,0.3940403,96314.0,96297.0,0.00015575]
[1739453767758,0.1864141,96307.0,96297.0,0.00015575]
[1739453767964,0.00015575,96316.0,96297.0,0.00015575]
[1739453768165,0.00015575,96316.0,96304.0,0.001]
[1739453768865,0.00015575,96316.0,96297.0,0.00015575]
[1739453769065,0.1864141,96310.0,96297.0,0.00315575]
[1739453769360,0.3608,96309.0,96297.0,0.00315575]
[1739453769768,0.1864141,96310.0,96304.0,0.001]
[1739453770164,0.00015575,96316.0,96304.0,0.001]
[1739453770969,0.2076223,96315.0,96304.0,0.001]
[1739453771169,0.3608,96308.0,96297.0,0.00015575]
[1739453771368,0.1864141,96307.0,96297.0,0.00415575]
[1739453771772,0.2076578,96299.0,96297.0,0.00415575]
[1739453772077,0.2076578,96299.0,96297.0,1e-08]
[1739453772570,0.2076887,96284.0,96262.0,0.3608]
[1739453772771,0.2077029,96278.0,96262.0,0.3608]
[1739453773074,0.1864141,96272.0,96262.0,0.3608]
[1739453773463,0.3608,96265.0,96248.0,0.3608]
[1739453773865,0.3608,96265.0,96253.0,0.00015575]
[1739453774065,0.17740822,96265.0,96253.0,0.00015575]
[1739453774567,0.1864141,96263.0,96253.0,0.00015575]
[1739453774766,0.1864141,96263.0,96256.0,0.3608]
[1739453775064,0.00015575,96272.0,96256.0,0.5685489]
[1739453775370,0.00015575,96272.0,96264.0,0.3608]
[1739453775570,0.00015575,96272.0,96265.0,0.3608]
[1739453775785,0.00015575,96272.0,96271.0,0.2077168]
[1739453776473,0.00015575,96272.0,96265.0,0.3608]
[1739453777071,0.00015575,96272.0,96270.0,0.2077175]
[1739453777371,0.76792,96291.0,96265.0,0.6608]
[1739453777571,0.76792,96291.0,96290.0,0.3608]
[1739453777972,0.1864141,96310.0,96290.0,0.3608]
[1739453777973,0.1132,96293.0,96290.0,0.3608]
[1739453778167,0.00155863,96311.0,96290.0,0.3608]
[1739453778367,0.00155863,96311.0,96310.0,0.3608]
[1739453778564,0.00015575,96301.0,96290.0,0.3608]
[1739453778875,0.001,96291.0,96290.0,0.3608]
[1739453779264,0.1138,96291.0,96290.0,0.3608]
[1739453779473,0.1128,96291.0,96290.0,0.5684758]
[1739453779774,0.00015575,96301.0,96290.0,0.3608]
[1739453779967,0.18548489,96310.0,96300.0,0.3608]
[1739453780168,0.1864141,96310.0,96300.0,0.3608]
[1739453780372,0.1864141,96310.0,96309.0,0.3608]
[1739453780672,0.00155863,96311.0,96300.0,0.3608]
[1739453780873,0.1864141,96310.0,96300.0,0.3608]
[1739453781073,0.3940488,96310.0,96300.0,0.3608]
[1739453781371,0.1864141,96310.0,96300.0,0.3608]
[1739453781971,0.1874141,96310.0,96300.0,0.3618]
[1739453782475,0.3608,96303.0,96282.0,0.00015575]
[1739453782773,0.1864141,96292.0,96282.0,0.00015575]
[1739453784481,0.2076759,96290.0,96282.0,0.00015575]
[1739453784672,0.1864141,96292.0,96287.0,0.3608]
[1739453784872,0.1864141,96300.0,96287.0,0.3608]
[1739453785068,0.002,96292.0,96287.0,0.3608]
[1739453785282,0.11216,96291.0,96287.0,0.3608]
[1739453785575,0.11216,96291.0,96282.0,0.00015575]
[1739453785775,0.002,96292.0,96287.0,0.3608]
[1739453786078,0.11204,96291.0,96287.0,0.3608]
[1739453786467,0.003,96292.0,96287.0,0.3608]
[1739453786775,0.00015575,96299.0,96298.0,0.2076585]
[1739453786983,0.1864141,96330.0,96298.0,0.3608]
[1739453787276,0.2076243,96314.0,96310.0,0.3608]
[1739453787476,0.1864141,96320.0,96298.0,0.3608]
[1739453787671,0.207652,96302.0,96298.0,0.3608]
[1739453787981,0.75545201,96308.0,96298.0,0.3608]
[1739453788173,0.754852,96308.0,96298.0,0.3608]
[1739453788484,0.2076442,96305.0,96298.0,0.3608]
[1739453788682,0.5472141,96308.0,96298.0,0.3608]
[1739453788683,0.54781411,96308.0,96298.0,0.3608]
[1739453788979,0.5472141,96308.0,96282.0,0.00015575]
[1739453789174,0.2077707,96246.0,96245.0,0.00155864]
[1739453789385,0.2077707,96246.0,96217.0,0.60555001]
[1739453789386,1.4898,96246.0,96217.0,0.24475001]
[1739453789684,0.207828,96220.0,96217.0,0.13408348]
[1739453789870,0.207828,96220.0,96217.0,0.13300348]
[1739453790072,0.5341,96225.0,96210.0,0.42809338]
[1739453790275,0.1864141,96220.0,96210.0,0.42809338]
[1739453790473,0.1864141,96220.0,96219.0,0.001]
[1739453790681,0.00015585,96228.0,96219.0,0.001]
[1739453790976,0.2078235,96222.0,96210.0,0.42921338]
[1739453791193,0.1864141,96220.0,96210.0,0.42809338]
[1739453791377,0.1864141,96220.0,96213.0,0.3608]
[1739453791585,0.2078235,96222.0,96219.0,0.001]
[1739453791877,0.00015585,96228.0,96221.0,0.001]
[1739453792178,0.00015585,96228.0,96227.0,0.001]
[1739453792387,0.00015585,96228.0,96222.0,0.3608]
[1739453792679,0.2078238,96222.0,96210.0,0.42917338]
[1739453792885,0.3608,96223.0,96210.0,0.42917338]
[1739453792886,0.3608,96215.0,96210.0,0.42809338]
[1739453793477,0.2078424,96213.0,96210.0,0.42809338]
[1739453794083,0.2078424,96213.0,96185.0,0.00155961]
[1739453794084,0.3608,96211.0,96185.0,0.00155961]
[1739453794387,0.2078593,96205.0,96191.0,0.3608]
[1739453794592,0.2078593,96205.0,96204.0,0.001]
[1739453795090,0.2078312,96219.0,96204.0,0.001]
[1739453795285,0.00015585,96214.0,96211.0,0.001]
[1739453795480,0.3608,96212.0,96199.0,0.3608]
[1739453795784,0.3608,96212.0,96195.0,0.00015585]
[1739453795785,0.3608,96204.0,96195.0,0.00015585]
[1739453796088,0.3608,96196.0,96195.0,0.00015585]
[1739453796590,0.36236022,96196.0,96158.0,0.3608]
[1739453796781,0.00156022,96196.0,96195.0,0.001]
[1739453796973,0.32595892,96196.0,96195.0,0.001]
[1739453797178,0.32595892,96196.0,96162.0,0.3608]
[1739453797179,0.00156022,96196.0,96162.0,0.3608]
[1739453797376,0.2079148,96180.0,96179.0,0.001]
[1739453797581,0.00056001,96195.0,96193.0,0.001]
[1739453797781,0.00156022,96196.0,96194.0,0.001]
[1739453797982,0.00015594,96189.0,96182.0,0.3608]
[1739453798378,0.00015594,96189.0,96188.0,0.001]
[1739453798701,0.00015594,96189.0,96182.0,0.3608]
[1739453798702,0.20805024,96189.0,96186.0,0.001]
[1739453799090,0.00015594,96189.0,96182.0,0.3608]
[1739453799391,0.00115594,96189.0,96188.0,0.001]
[1739453800987,0.00015594,96189.0,96188.0,0.001]
[1739453801797,0.00015594,96189.0,96188.0,0.004]
[1739453802991,0.207919,96178.0,96169.0,0.00015594]
[1739453803391,0.207919,96178.0,96176.0,0.001]
[1739453803896,0.2079259,96175.0,96169.0,0.00015594]
[1739453804286,0.2079259,96175.0,96174.0,0.001]
[1739453804681,0.001,96178.0,96174.0,0.001]
[1739453804993,0.20805014,96189.0,96177.0,0.001]
[1739453805188,0.20805014,96189.0,96179.0,0.001]
[1739453805491,0.00015594,96189.0,96186.0,0.001]
[1739453805694,0.00015594,96189.0,96188.0,0.001]
[1739453807189,0.00015594,96189.0,96188.0,0.3618]
[1739453807987,0.00315594,96189.0,96188.0,0.3618]
[1739453808884,0.76904,96202.0,96188.0,0.3638]
[1739453809086,0.76956001,96202.0,96195.0,0.001]
[1739453809387,0.11588022,96196.0,96195.0,0.001]
[1739453810085,0.11443211,96196.0,96195.0,0.001]
[1739453810288,0.00015594,96205.0,96195.0,0.3]
[1739453810485,0.1543814,96228.0,96207.0,0.2078539]
[1739453810693,0.1543814,96228.0,96227.0,0.3618]
[1739453811806,0.1543814,96228.0,96227.0,0.001]
[1739453812296,0.007,96228.0,96227.0,0.002]
[1739453812492,0.12068,96228.0,96227.0,0.002]
[1739453813488,0.007,96228.0,96227.0,0.002]
[1739453813702,0.12016,96228.0,96227.0,0.002]
[1739453814599,0.11316,96228.0,96227.0,0.001]
[1739453814899,0.11416,96228.0,96227.0,0.001]
[1739453815393,0.001,96228.0,96227.0,0.001]
[1739453815589,0.11944,96228.0,96227.0,0.002]
[1739453817792,0.11644,96228.0,96227.0,0.001]
[1739453818692,0.11944,96228.0,96227.0,0.002]
[1739453819497,0.11444,96228.0,96227.0,0.001]
[1739453820492,0.002,96228.0,96227.0,0.2088118]
[1739453820891,0.00155993,96235.0,96227.0,0.2088118]
[1739453821091,0.00155993,96235.0,96225.0,0.3608]
[1739453821092,0.005,96228.0,96225.0,0.3608]
[1739453821291,0.005,96228.0,96226.0,0.3608]
[1739453821501,0.005,96228.0,96227.0,0.001]
[1739453821797,0.002,96228.0,96227.0,0.001]
[1739453822193,0.002,96228.0,96227.0,0.2088118]
[1739453822389,0.00155993,96235.0,96234.0,0.2077967]
[1739453822700,0.00155993,96235.0,96234.0,0.3618]
[1739453823088,0.00155993,96235.0,96234.0,0.3608]
[1739453823391,0.00155993,96235.0,96218.0,0.00015594]
[1739453823592,0.5686279,96220.0,96218.0,0.00015594]
[1739453823792,0.2078663,96202.0,96180.0,0.3608]
[1739453823998,0.3608,96202.0,96188.0,0.3608]
[1739453824202,0.1116,96201.0,96188.0,0.3608]
[1739453824398,0.568652,96209.0,96202.0,0.001]
[1739453824595,0.568652,96209.0,96183.0,0.20946574]
[1739453824596,0.3608,96220.0,96208.0,0.3618]
[1739453824790,0.3608,96220.0,96219.0,0.001]
[1739453825496,0.4722,96220.0,96219.0,0.001]
[1739453825695,0.1114,96220.0,96219.0,0.001]
[1739453826095,0.3262269,96220.0,96219.0,0.001]
[1739453826296,0.2148269,96220.0,96219.0,0.001]
[1739453826505,0.007,96220.0,96209.0,0.3608]
[1739453826698,0.29791637,96219.0,96209.0,0.3608]
[1739453826906,0.39462657,96219.0,96209.0,0.3608]
[1739453827098,0.20778711,96218.0,96209.0,0.3608]
[1739453827400,0.18679637,96219.0,96209.0,0.3608]
[1739453827401,0.2078342,96217.0,96209.0,0.3608]
[1739453828091,0.007,96220.0,96209.0,0.3608]
[1739453828295,0.007,96220.0,96219.0,0.001]
[1739453828494,0.11084,96220.0,96219.0,0.3618]
[1739453829404,0.11784,96220.0,96219.0,0.3618]
[1739453829597,0.007,96220.0,96219.0,0.3618]
[1739453829800,0.1543814,96221.0,96220.0,0.2078269]
[1739453830507,0.1543814,96221.0,96217.0,0.3608]
[1739453831100,0.007,96220.0,96219.0,0.001]
[1739453831297,0.007,96220.0,96219.0,0.208829]
[1739453831499,0.1543814,96240.0,96219.0,0.001]
[1739453831809,0.1543814,96240.0,96217.0,0.3608]
[1739453831810,0.002,96221.0,96217.0,0.3608]
[1739453832006,0.002,96221.0,96220.0,0.3608]
[1739453832202,0.1543814,96240.0,96220.0,0.3608]
[1739453832402,0.1543814,96240.0,96237.0,0.2077891]
[1739453832711,0.00015594,96237.0,96235.0,0.3608]
[1739453832910,0.20794684,96237.0,96235.0,0.3608]
[1739453833409,0.00015594,96237.0,96235.0,0.3608]
[1739453833908,0.20794664,96237.0,96235.0,0.3608]
[1739453834103,0.20794664,96237.0,96229.0,0.00015594]
[1739453834104,0.2078053,96230.0,96229.0,0.00015594]
[1739453835103,0.3608,96232.0,96229.0,0.00015594]
[1739453835611,0.3608,96232.0,96217.0,0.00155892]
[1739453835612,0.2078296,96219.0,96217.0,0.00155892]
[1739453836223,0.3608,96222.0,96217.0,0.00155892]
[1739453836413,0.2078165,96225.0,96217.0,0.00155892]
[1739453837500,0.18679637,96227.0,96217.0,0.00155892]
[1739453837702,0.2078312,96218.0,96217.0,0.00155892]
[1739453837902,0.2078312,96218.0,96217.0,0.00255892]
[1739453838599,0.3608,96224.0,96217.0,0.00155892]
[1739453838799,0.5686189,96224.0,96217.0,0.00255892]
[1739453839206,0.3608,96224.0,96217.0,0.00255892]
[1739453839420,0.2078295,96219.0,96217.0,0.00255892]
[1739453839704,0.3608,96218.0,96189.0,0.3608]
[1739453839912,0.18679637,96200.0,96189.0,0.3608]
[1739453840103,0.18498639,96200.0,96189.0,0.3608]
[1739453841506,0.54578639,96200.0,96189.0,0.3608]
[1739453841807,0.2078731,96199.0,96189.0,0.3608]
[1739453842606,0.2078779,96197.0,96189.0,0.3608]
[1739453843216,0.5463064,96200.0,96189.0,0.3608]
[1739453843409,0.18655979,96198.0,96189.0,0.3608]
[1739453843604,0.10716,96197.0,96189.0,0.3608]
[1739453843799,0.18655979,96198.0,96189.0,0.3608]
[1739453843800,0.10684,96196.0,96189.0,0.3608]
[1739453845012,0.3608,96192.0,96185.0,0.00015594]
[1739453845205,0.2078988,96187.0,96185.0,0.00015594]
[1739453846011,0.2079362,96170.0,96153.0,0.3608]
[1739453846221,0.3608,96177.0,96153.0,0.3608]
[1739453846510,0.3608,96186.0,96163.0,0.3608]
[1739453846706,0.1072,96185.0,96174.0,0.3608]
[1739453846908,0.18679637,96190.0,96174.0,0.3608]
[1739453847109,0.00015594,96189.0,96174.0,0.3608]
[1739453847815,0.3608,96188.0,96170.0,0.00015594]
[1739453848013,0.207927,96174.0,96170.0,0.00015594]
[1739453848411,0.39471027,96180.0,96170.0,0.00015594]
[1739453848805,0.2079328,96171.0,96170.0,0.00015594]
[1739453849506,0.2079209,96177.0,96170.0,0.00015594]
[1739453849710,0.3608,96179.0,96170.0,0.00015594]
[1739453850016,0.207927,96174.0,96170.0,0.00015594]
[1739453850214,0.23711936,96186.0,96170.0,0.00015594]
[1739453850419,0.2079027,96185.0,96170.0,0.00015594]
[1739453850609,0.23711936,96186.0,96175.0,0.3608]
[1739453851211,0.3608,96177.0,96170.0,0.00015594]
[1739453851616,0.2079308,96172.0,96170.0,0.00015594]
[1739453852309,0.0519811,96175.0,96143.0,0.3608]
[1739453852613,0.0519811,96175.0,96144.0,0.3608]
[1739453852614,0.2079741,96152.0,96144.0,0.3608]
[1739453853016,0.18679637,96153.0,96136.0,0.3608]
[1739453853805,0.18679637,96146.0,96136.0,0.3608]
[1739453854206,0.39478357,96146.0,96135.0,0.00010442]
[1739453854420,0.2079916,96144.0,96135.0,0.00010442]
[1739453854605,0.18679637,96146.0,96136.0,0.007]
[1739453855523,0.18679637,96146.0,96135.0,0.00710442]
[1739453856619,0.00015594,96154.0,96145.0,0.3608]
[1739453857323,0.2079745,96152.0,96145.0,0.3608]
[1739453858119,0.00015594,96154.0,96145.0,0.3608]
[1739453858120,0.2079767,96151.0,96145.0,0.3608]
[1739453858728,0.2079786,96150.0,96145.0,0.3678]
[1739453859016,0.2079855,96147.0,96145.0,0.3678]
[1739453860127,0.2079725,96153.0,96145.0,0.3678]
[1739453860428,0.36095594,96154.0,96145.0,0.3678]
[1739453860620,0.00015594,96154.0,96145.0,0.3678]
[1739453860927,0.00015594,96154.0,96146.0,0.2079867]
[1739453861225,0.00015594,96154.0,96145.0,0.3678]
[1739453862312,0.00015594,96154.0,96153.0,0.3608]
[1739453862712,0.15460958,96158.0,96157.0,0.207963]
[1739453863023,0.1855315,96168.0,96167.0,0.2079414]
[1739453863213,0.3608,96197.0,96167.0,0.3608]
[1739453863214,0.2079245,96175.0,96167.0,0.3608]
[1739453863417,0.18679637,96180.0,96157.0,0.3608]
[1739453863626,0.18557416,96166.0,96157.0,0.3608]
[1739453863825,0.18557416,96166.0,96159.0,0.00015602]
[1739453864015,0.18557416,96166.0,96165.0,0.3608]
[1739453864213,0.00015602,96178.0,96169.0,0.2079356]
[1739453864415,0.00015602,96178.0,96177.0,0.3608]
[1739453865027,0.21577076,96182.0,96181.0,0.2079111]
[1739453865216,0.00060001,96192.0,96181.0,0.3608]
[1739453865417,0.00060001,96192.0,96188.0,0.3608]
[1739453865613,0.18679637,96200.0,96188.0,0.3608]
[1739453865826,0.18679637,96200.0,96188.0,0.7216]
[1739453866024,0.568657,96207.0,96188.0,0.7216]
[1739453866328,0.00015602,96198.0,96188.0,0.7216]
[1739453867029,0.00015602,96198.0,96197.0,0.3608]
[1739453867526,0.05195,96233.0,96197.0,0.3608]
[1739453867527,0.3608,96237.0,96197.0,0.6608]
[1739453867734,0.39455857,96250.0,96229.0,0.7216]
[1739453867927,0.18679637,96240.0,96229.0,0.7216]
[1739453868123,0.207786,96239.0,96229.0,0.3608]